[Event "*** Qualifier 2: Titled Tuesday 3|2 Blitz"]
[Site "Chess.com"]
[Date "2017.04.11"]
[Round "10"]
[White "stepanosinovsky"]
[Black "TheNextLevelFan"]
[Result "0-1"]
[WhiteElo "2217"]
[BlackElo "2388"]
[TimeControl "180+2"]
[EndTime "15:21:53 PDT"]
[Termination "TheNextLevelFan won by checkmate"]

1. e4 {[%clk 0:03:02]} 1... e5 {[%clk 0:03:00.4]} 2. Nf3 {[%clk 0:03:03.2]} 2...
Nc6 {[%clk 0:03:01.9]} 3. Bb5 {[%clk 0:03:03.2]} 3... a6 {[%clk 0:03:02.6]} 4.
Ba4 {[%clk 0:03:04.3]} 4... Nf6 {[%clk 0:03:04]} 5. O-O {[%clk 0:03:04.6]} 5...
Be7 {[%clk 0:03:05.4]} 6. Re1 {[%clk 0:03:04.4]} 6... b5 {[%clk 0:03:06.6]} 7.
Bb3 {[%clk 0:03:05.3]} 7... O-O {[%clk 0:03:08.5]} 8. Nc3 {[%clk 0:03:04.1]}
8... d6 {[%clk 0:03:05.3]} 9. Nd5 {[%clk 0:02:48.8]} 9... Na5 {[%clk 0:02:59.8]}
10. d4 {[%clk 0:02:46.6]} 10... Nxd5 {[%clk 0:02:53.4]} 11. exd5 {[%clk
0:02:43.2]} 11... Nxb3 {[%clk 0:02:43.3]} 12. axb3 {[%clk 0:02:43.2]} 12... f6
{[%clk 0:02:44.3]} 13. c4 {[%clk 0:02:26.8]} 13... Bd7 {[%clk 0:02:43.6]} 14.
Bd2 {[%clk 0:02:19.3]} 14... Kh8 {[%clk 0:02:36.1]} 15. Bc3 {[%clk 0:02:12.9]}
15... c6 {[%clk 0:02:21.6]} 16. dxc6 {[%clk 0:02:08.4]} 16... Bxc6 {[%clk
0:02:22.6]} 17. dxe5 {[%clk 0:02:01.4]} 17... dxe5 {[%clk 0:02:23.3]} 18. Qe2
{[%clk 0:01:59.7]} 18... Qb6 {[%clk 0:02:18.6]} 19. Ba5 {[%clk 0:01:54.2]} 19...
Qb7 {[%clk 0:02:19.6]} 20. Red1 {[%clk 0:01:47.9]} 20... Bc5 {[%clk 0:02:13.9]}
21. b4 {[%clk 0:01:33.6]} 21... Bxf3 {[%clk 0:02:14.4]} 22. Qxf3 {[%clk
0:01:24.3]} 22... Qxf3 {[%clk 0:02:14.2]} 23. gxf3 {[%clk 0:01:25.8]} 23... Bd4
{[%clk 0:02:15.9]} 24. c5 {[%clk 0:01:15.3]} 24... Rac8 {[%clk 0:02:13.9]} 25.
Bb6 {[%clk 0:01:13]} 25... Ra8 {[%clk 0:02:07.8]} 26. Rd2 {[%clk 0:01:04.2]}
26... g5 {[%clk 0:02:05.1]} 27. Rad1 {[%clk 0:01:01.6]} 27... Kg7 {[%clk
0:01:56.3]} 28. Kg2 {[%clk 0:00:58.4]} 28... Kg6 {[%clk 0:01:56.8]} 29. Ba5
{[%clk 0:00:56.6]} 29... Rac8 {[%clk 0:01:50.3]} 30. Bb6 {[%clk 0:00:46]} 30...
Rc6 {[%clk 0:01:47.8]} 31. Ra1 {[%clk 0:00:44.8]} 31... Ra8 {[%clk 0:01:48]} 32.
Ra2 {[%clk 0:00:41.6]} 32... Kf5 {[%clk 0:01:39.8]} 33. Rd1 {[%clk 0:00:39.7]}
33... Ke6 {[%clk 0:01:30.3]} 34. Rda1 {[%clk 0:00:39.1]} 34... Kd5 {[%clk
0:01:31.4]} 35. Rc1 {[%clk 0:00:36.5]} 35... h5 {[%clk 0:01:29.9]} 36. h3 {[%clk
0:00:36.5]} 36... f5 {[%clk 0:01:30.9]} 37. b3 {[%clk 0:00:36.5]} 37... g4
{[%clk 0:01:26.4]} 38. hxg4 {[%clk 0:00:36.7]} 38... hxg4 {[%clk 0:01:27.4]} 39.
fxg4 {[%clk 0:00:37.6]} 39... Rg6 {[%clk 0:01:27.9]} 40. f3 {[%clk 0:00:36]}
40... fxg4 {[%clk 0:01:28.6]} 41. fxg4 {[%clk 0:00:27.8]} 41... Rf8 {[%clk
0:01:24.4]} 42. Kh3 {[%clk 0:00:16.9]} 42... Rf3+ {[%clk 0:01:13.2]} 43. Kh4
{[%clk 0:00:14.8]} 43... Be3 {[%clk 0:01:12.3]} 44. Rd1+ {[%clk 0:00:14.8]}
44... Ke4 {[%clk 0:01:12.9]} 45. Rg2 {[%clk 0:00:15.6]} 45... Rh6# {[%clk
0:01:13.6]} 0-1

[Event "*** Qualifier 2: Titled Tuesday 3|2 Blitz"]
[Site "Chess.com"]
[Date "2017.04.11"]
[Round "10"]
[White "Vamostodorecto"]
[Black "Sanan_Sjugirov"]
[Result "0-1"]
[WhiteElo "2352"]
[BlackElo "2665"]
[TimeControl "180+2"]
[EndTime "15:21:54 PDT"]
[Termination "Sanan_Sjugirov won by checkmate"]

1. d4 {[%clk 0:02:31]} 1... Nf6 {[%clk 0:02:50.5]} 2. c4 {[%clk 0:02:31.3]} 2...
e6 {[%clk 0:02:51.6]} 3. Nc3 {[%clk 0:02:32.2]} 3... Bb4 {[%clk 0:02:52.3]} 4.
a3 {[%clk 0:02:33.8]} 4... Bxc3+ {[%clk 0:02:53.5]} 5. bxc3 {[%clk 0:02:35.7]}
5... c5 {[%clk 0:02:53.3]} 6. f3 {[%clk 0:02:37.1]} 6... d5 {[%clk 0:02:53.4]}
7. cxd5 {[%clk 0:02:37.5]} 7... exd5 {[%clk 0:02:53.5]} 8. e3 {[%clk 0:02:38.3]}
8... O-O {[%clk 0:02:53.5]} 9. Bd3 {[%clk 0:02:39.9]} 9... b6 {[%clk 0:02:53.3]}
10. Ne2 {[%clk 0:02:41.4]} 10... Ba6 {[%clk 0:02:52.7]} 11. O-O {[%clk
0:02:42.5]} 11... Re8 {[%clk 0:02:53.1]} 12. Ng3 {[%clk 0:02:42.5]} 12... Bxd3
{[%clk 0:02:51.2]} 13. Qxd3 {[%clk 0:02:44.4]} 13... Nc6 {[%clk 0:02:52.6]} 14.
Ra2 {[%clk 0:02:44.7]} 14... Qd7 {[%clk 0:02:45.4]} 15. Re2 {[%clk 0:02:44.8]}
15... Rad8 {[%clk 0:02:43.8]} 16. Bb2 {[%clk 0:02:44.5]} 16... Na5 {[%clk
0:02:34.7]} 17. e4 {[%clk 0:02:34]} 17... cxd4 {[%clk 0:02:14.5]} 18. e5 {[%clk
0:02:19]} 18... Nc4 {[%clk 0:01:40.3]} 19. cxd4 {[%clk 0:02:03]} 19... Qb5
{[%clk 0:01:40.5]} 20. f4 {[%clk 0:01:19.9]} 20... Ne4 {[%clk 0:01:36]} 21. Ba1
{[%clk 0:00:56.7]} 21... Nxg3 {[%clk 0:01:26.1]} 22. Qxg3 {[%clk 0:00:58.6]}
22... Qa4 {[%clk 0:00:51.7]} 23. f5 {[%clk 0:00:47]} 23... Qxa3 {[%clk
0:00:52.3]} 24. Bc3 {[%clk 0:00:47.6]} 24... Rc8 {[%clk 0:00:28.8]} 25. f6
{[%clk 0:00:47.4]} 25... g6 {[%clk 0:00:29.3]} 26. Rf3 {[%clk 0:00:42.8]} 26...
Nd6 {[%clk 0:00:24.7]} 27. Qh4 {[%clk 0:00:30.8]} 27... Rxc3 {[%clk 0:00:19.7]}
28. Qh6 {[%clk 0:00:26.9]} 28... Qc1+ {[%clk 0:00:20.3]} 29. Qxc1 {[%clk
0:00:22.3]} 29... Rxc1+ {[%clk 0:00:22.2]} 30. Kf2 {[%clk 0:00:22.3]} 30... Ne4+
{[%clk 0:00:22.7]} 31. Ke3 {[%clk 0:00:23.6]} 31... g5 {[%clk 0:00:21]} 32. Ra2
{[%clk 0:00:22.9]} 32... Rec8 {[%clk 0:00:21]} 33. Rf5 {[%clk 0:00:17]} 33... h5
{[%clk 0:00:19.1]} 34. h4 {[%clk 0:00:15.4]} 34... Re1+ {[%clk 0:00:19.6]} 35.
Kd3 {[%clk 0:00:08.2]} 35... Rc3# {[%clk 0:00:21.5]} 0-1

[Event "*** Qualifier 2: Titled Tuesday 3|2 Blitz"]
[Site "Chess.com"]
[Date "2017.04.11"]
[Round "10"]
[White "kleinebeer98"]
[Black "StarkAst"]
[Result "0-1"]
[WhiteElo "2454"]
[BlackElo "2362"]
[TimeControl "180+2"]
[EndTime "15:22:05 PDT"]
[Termination "StarkAst won by resignation"]

1. e4 {[%clk 0:03:02]} 1... e6 {[%clk 0:03:00.6]} 2. d4 {[%clk 0:03:02.3]} 2...
d5 {[%clk 0:03:00.4]} 3. Nc3 {[%clk 0:02:56.9]} 3... Bb4 {[%clk 0:03:00.6]} 4.
a3 {[%clk 0:02:53.3]} 4... Bxc3+ {[%clk 0:03:00.9]} 5. bxc3 {[%clk 0:02:55.2]}
5... Ne7 {[%clk 0:03:02.4]} 6. Qg4 {[%clk 0:02:51]} 6... O-O {[%clk 0:03:02.8]}
7. h4 {[%clk 0:02:39.5]} 7... e5 {[%clk 0:03:00.8]} 8. Qg3 {[%clk 0:02:25.8]}
8... exd4 {[%clk 0:02:58.4]} 9. Bh6 {[%clk 0:02:09.4]} 9... Ng6 {[%clk 0:02:59]}
10. Bxg7 {[%clk 0:02:06.5]} 10... Kxg7 {[%clk 0:02:57.3]} 11. h5 {[%clk
0:02:07.5]} 11... dxe4 {[%clk 0:02:29.4]} 12. hxg6 {[%clk 0:02:05.3]} 12... fxg6
{[%clk 0:02:23.9]} 13. Rd1 {[%clk 0:02:00.3]} 13... c5 {[%clk 0:02:09.8]} 14.
Nh3 {[%clk 0:01:57.2]} 14... Bxh3 {[%clk 0:02:02.2]} 15. Qxh3 {[%clk 0:01:55]}
15... h5 {[%clk 0:02:01.2]} 16. Qg3 {[%clk 0:01:51.3]} 16... Rf5 {[%clk
0:01:19.8]} 17. Be2 {[%clk 0:01:13.1]} 17... Nc6 {[%clk 0:01:09.3]} 18. Rxh5
{[%clk 0:01:08.2]} 18... Rxh5 {[%clk 0:01:07.7]} 19. Bxh5 {[%clk 0:01:10.1]}
19... Qf6 {[%clk 0:01:03]} 20. Rb1 {[%clk 0:00:54.5]} 20... b6 {[%clk
0:00:52.8]} 21. Bxg6 {[%clk 0:00:30.4]} 21... Qxg6 {[%clk 0:00:46.9]} 22. Qc7+
{[%clk 0:00:31.4]} 22... Kg8 {[%clk 0:00:38.2]} 23. Kd2 {[%clk 0:00:16.1]} 23...
dxc3+ {[%clk 0:00:27.5]} 24. Ke2 {[%clk 0:00:12.6]} 24... Nd4+ {[%clk
0:00:24.6]} 25. Kf1 {[%clk 0:00:14]} 25... Rf8 {[%clk 0:00:23]} 26. Re1 {[%clk
0:00:10.2]} 26... Qf7 {[%clk 0:00:15.2]} 27. Qg3+ {[%clk 0:00:09.8]} 27... Qg7
{[%clk 0:00:16.6]} 28. Qxc3 {[%clk 0:00:09.9]} 28... Nf5 {[%clk 0:00:13.3]} 29.
Qb3+ {[%clk 0:00:08.4]} 29... Qf7 {[%clk 0:00:13.6]} 30. Qh3 {[%clk 0:00:05]}
30... e3 {[%clk 0:00:13.1]} 31. f3 {[%clk 0:00:02.6]} 31... Qc4+ {[%clk
0:00:07.4]} 32. Kg1 {[%clk 0:00:04]} 32... Qd4 {[%clk 0:00:09]} 33. Re2 {[%clk
0:00:04.8]} 33... Qd1+ {[%clk 0:00:09.7]} 34. Re1 {[%clk 0:00:05.1]} 34... Qxe1+
{[%clk 0:00:10.6]} 35. Kh2 {[%clk 0:00:06.6]} 35... Qg3+ {[%clk 0:00:12.2]} 36.
Qxg3+ {[%clk 0:00:06.3]} 0-1

[Event "*** Qualifier 2: Titled Tuesday 3|2 Blitz"]
[Site "Chess.com"]
[Date "2017.04.11"]
[Round "10"]
[White "Alex_Molchanov"]
[Black "1e41-0"]
[Result "1-0"]
[WhiteElo "2417"]
[BlackElo "2313"]
[TimeControl "180+2"]
[EndTime "15:22:28 PDT"]
[Termination "Alex_Molchanov won by checkmate"]

1. c4 {[%clk 0:02:58.7]} 1... c6 {[%clk 0:03:00.2]} 2. e4 {[%clk 0:02:59]} 2...
d5 {[%clk 0:02:58.8]} 3. cxd5 {[%clk 0:02:56.4]} 3... cxd5 {[%clk 0:03:00.7]} 4.
exd5 {[%clk 0:02:57.2]} 4... Nf6 {[%clk 0:03:01.9]} 5. Qa4+ {[%clk 0:02:57]}
5... Bd7 {[%clk 0:03:00.7]} 6. Qb3 {[%clk 0:02:49.8]} 6... Na6 {[%clk
0:02:54.1]} 7. d4 {[%clk 0:02:12.3]} 7... Qa5+ {[%clk 0:02:46.4]} 8. Nc3 {[%clk
0:02:07.1]} 8... Nc7 {[%clk 0:02:40.5]} 9. Bd2 {[%clk 0:01:57.5]} 9... Qb6
{[%clk 0:02:01.3]} 10. Bc4 {[%clk 0:01:41.9]} 10... Qxb3 {[%clk 0:01:48.1]} 11.
Bxb3 {[%clk 0:01:43.8]} 11... b5 {[%clk 0:01:49.2]} 12. a3 {[%clk 0:01:24.9]}
12... g6 {[%clk 0:01:38.8]} 13. Nf3 {[%clk 0:01:18]} 13... Bg7 {[%clk
0:01:38.9]} 14. Bf4 {[%clk 0:01:04.1]} 14... Rc8 {[%clk 0:01:28]} 15. O-O {[%clk
0:00:57.4]} 15... Nh5 {[%clk 0:01:21.2]} 16. Bg5 {[%clk 0:00:48.3]} 16... h6
{[%clk 0:01:20.8]} 17. Bd2 {[%clk 0:00:41.4]} 17... O-O {[%clk 0:01:17.4]} 18.
Ne5 {[%clk 0:00:35.6]} 18... Rfd8 {[%clk 0:01:11.3]} 19. d6 {[%clk 0:00:28.2]}
19... exd6 {[%clk 0:01:00.7]} 20. Nxf7 {[%clk 0:00:24.3]} 20... Be6 {[%clk
0:00:58.9]} 21. Bxe6 {[%clk 0:00:22.1]} 21... Nxe6 {[%clk 0:01:00.8]} 22. Nxd8
{[%clk 0:00:23.1]} 22... Rxd8 {[%clk 0:00:55.1]} 23. Nxb5 {[%clk 0:00:20.3]}
23... Nxd4 {[%clk 0:00:55.6]} 24. Nxd4 {[%clk 0:00:17.8]} 24... Bxd4 {[%clk
0:00:57.3]} 25. Bc3 {[%clk 0:00:16.9]} 25... Bc5 {[%clk 0:00:54]} 26. g3 {[%clk
0:00:16.8]} 26... d5 {[%clk 0:00:53.3]} 27. Rad1 {[%clk 0:00:16.8]} 27... d4
{[%clk 0:00:54]} 28. Rd3 {[%clk 0:00:16.2]} 28... Rb8 {[%clk 0:00:43.6]} 29.
Bxd4 {[%clk 0:00:16]} 29... Bxd4 {[%clk 0:00:45]} 30. Rxd4 {[%clk 0:00:17.2]}
30... Rxb2 {[%clk 0:00:46.7]} 31. Rd7 {[%clk 0:00:17.2]} 31... a5 {[%clk
0:00:45.5]} 32. Rc1 {[%clk 0:00:18]} 32... Rb8 {[%clk 0:00:40.9]} 33. Rc6 {[%clk
0:00:18.8]} 33... Kf8 {[%clk 0:00:21.8]} 34. Rxg6 {[%clk 0:00:17.2]} 34... Re8
{[%clk 0:00:21.6]} 35. Rxh6 {[%clk 0:00:16.6]} 35... Kg8 {[%clk 0:00:11.7]} 36.
Rxh5 {[%clk 0:00:15.7]} 36... Re1+ {[%clk 0:00:13.4]} 37. Kg2 {[%clk 0:00:16.7]}
37... Re8 {[%clk 0:00:15.3]} 38. Rg5+ {[%clk 0:00:16.8]} 38... Kh8 {[%clk
0:00:17.2]} 39. Rh5+ {[%clk 0:00:17.8]} 39... Kg8 {[%clk 0:00:19.1]} 40. Rxa5
{[%clk 0:00:19.3]} 40... Kh8 {[%clk 0:00:21]} 41. Rh5+ {[%clk 0:00:20.5]} 41...
Kg8 {[%clk 0:00:22.9]} 42. Rg5+ {[%clk 0:00:22.3]} 42... Kh8 {[%clk 0:00:24.4]}
43. h4 {[%clk 0:00:23.9]} 43... Ra8 {[%clk 0:00:24.5]} 44. Rb5 {[%clk
0:00:23.4]} 44... Rf8 {[%clk 0:00:26]} 45. a4 {[%clk 0:00:24.4]} 45... Re8
{[%clk 0:00:27.5]} 46. a5 {[%clk 0:00:25.5]} 46... Rf8 {[%clk 0:00:28]} 47. a6
{[%clk 0:00:26.1]} 47... Re8 {[%clk 0:00:29.6]} 48. a7 {[%clk 0:00:27]} 48...
Rf8 {[%clk 0:00:30.7]} 49. Rb8 {[%clk 0:00:27.6]} 49... Rg8 {[%clk 0:00:32]} 50.
a8=Q {[%clk 0:00:23.1]} 50... Rd8 {[%clk 0:00:31.4]} 51. Rbxd8# {[%clk
0:00:23.2]} 1-0

[Event "*** Qualifier 2: Titled Tuesday 3|2 Blitz"]
[Site "Chess.com"]
[Date "2017.04.11"]
[Round "10"]
[White "johnathan113"]
[Black "XDPS"]
[Result "1-0"]
[WhiteElo "2464"]
[BlackElo "2567"]
[TimeControl "180+2"]
[EndTime "15:22:40 PDT"]
[Termination "johnathan113 won by resignation"]

1. d4 {[%clk 0:02:59.2]} 1... d5 {[%clk 0:03:00.4]} 2. Nc3 {[%clk 0:02:56.2]}
2... Nf6 {[%clk 0:02:59.8]} 3. Bf4 {[%clk 0:02:45]} 3... Bf5 {[%clk 0:02:59.5]}
4. f3 {[%clk 0:02:41.9]} 4... Bg6 {[%clk 0:02:59.7]} 5. g4 {[%clk 0:02:40.3]}
5... h6 {[%clk 0:02:55.2]} 6. h4 {[%clk 0:02:35.5]} 6... e6 {[%clk 0:02:55.9]}
7. e3 {[%clk 0:02:34.4]} 7... c6 {[%clk 0:02:51]} 8. h5 {[%clk 0:02:31.6]} 8...
Bh7 {[%clk 0:02:51.1]} 9. Bd3 {[%clk 0:02:33.5]} 9... Bd6 {[%clk 0:02:47.9]} 10.
Nge2 {[%clk 0:02:31.1]} 10... Bxf4 {[%clk 0:02:46.3]} 11. exf4 {[%clk 0:02:33]}
11... Nbd7 {[%clk 0:02:47.1]} 12. Bxh7 {[%clk 0:02:33]} 12... Nxh7 {[%clk
0:02:47.3]} 13. Qd3 {[%clk 0:02:34.9]} 13... Qc7 {[%clk 0:02:37.6]} 14. Qe3
{[%clk 0:02:30.2]} 14... O-O-O {[%clk 0:02:31.2]} 15. O-O-O {[%clk 0:02:22.4]}
15... Rde8 {[%clk 0:02:30.2]} 16. Kb1 {[%clk 0:02:14.6]} 16... f6 {[%clk
0:02:25.1]} 17. Ng3 {[%clk 0:02:05.8]} 17... Re7 {[%clk 0:02:24.2]} 18. Nf5
{[%clk 0:02:05.2]} 18... Rhe8 {[%clk 0:01:59.5]} 19. Nxe7+ {[%clk 0:01:57.2]}
19... Rxe7 {[%clk 0:02:01.4]} 20. Rhe1 {[%clk 0:01:58.3]} 20... Kd8 {[%clk
0:01:55.9]} 21. Re2 {[%clk 0:01:45.6]} 21... Qd6 {[%clk 0:01:53.6]} 22. Rde1
{[%clk 0:01:45.6]} 22... b6 {[%clk 0:01:43.9]} 23. Rd2 {[%clk 0:01:46.2]} 23...
Ke8 {[%clk 0:01:42.7]} 24. Ne2 {[%clk 0:01:39.8]} 24... Kf7 {[%clk 0:01:41]} 25.
Ng3 {[%clk 0:01:32.8]} 25... Re8 {[%clk 0:01:37.7]} 26. Nf5 {[%clk 0:01:23.8]}
26... Qb8 {[%clk 0:01:34.7]} 27. Rde2 {[%clk 0:01:24.1]} 27... c5 {[%clk
0:01:30.5]} 28. c3 {[%clk 0:01:07.9]} 28... Qc7 {[%clk 0:01:25.9]} 29. Nh4
{[%clk 0:01:08.1]} 29... Qd6 {[%clk 0:01:18.5]} 30. Qd3 {[%clk 0:01:08]} 30...
Nhf8 {[%clk 0:01:18.9]} 31. Qe3 {[%clk 0:01:00.1]} 31... Re7 {[%clk 0:01:12.6]}
32. Nf5 {[%clk 0:00:52]} 32... Qc6 {[%clk 0:01:04.2]} 33. Nxe7 {[%clk
0:00:49.1]} 33... Kxe7 {[%clk 0:01:06.1]} 34. f5 {[%clk 0:00:49.9]} 34... e5
{[%clk 0:01:07.4]} 35. dxe5 {[%clk 0:00:40.6]} 35... fxe5 {[%clk 0:01:08.4]} 36.
f4 {[%clk 0:00:41.5]} 36... e4 {[%clk 0:01:09.5]} 37. c4 {[%clk 0:00:40.7]}
37... Nf6 {[%clk 0:01:10.1]} 38. g5 {[%clk 0:00:41.5]} 38... Nxh5 {[%clk
0:00:48.2]} 39. cxd5 {[%clk 0:00:37.3]} 39... Qxd5 {[%clk 0:00:50.1]} 40. Qxe4+
{[%clk 0:00:37.8]} 40... Qxe4+ {[%clk 0:00:51.4]} 41. Rxe4+ {[%clk 0:00:39.1]}
41... Kf7 {[%clk 0:00:53.3]} 42. Re7+ {[%clk 0:00:38.8]} 42... Kg8 {[%clk
0:00:54.3]} 43. Rxa7 {[%clk 0:00:39.1]} 43... Nxf4 {[%clk 0:00:53.9]} 44. Ree7
{[%clk 0:00:39.4]} 44... hxg5 {[%clk 0:00:54.5]} 45. Rxg7+ {[%clk 0:00:39.9]}
45... Kh8 {[%clk 0:00:56]} 46. Rxg5 {[%clk 0:00:40.1]} 46... Nd5 {[%clk
0:00:49.1]} 47. Ra8 {[%clk 0:00:32.2]} 1-0

[Event "*** Qualifier 2: Titled Tuesday 3|2 Blitz"]
[Site "Chess.com"]
[Date "2017.04.11"]
[Round "10"]
[White "Robin-Side"]
[Black "chesstatour"]
[Result "0-1"]
[WhiteElo "2341"]
[BlackElo "1958"]
[TimeControl "180+2"]
[EndTime "15:22:52 PDT"]
[Termination "chesstatour won by resignation"]

1. e4 {[%clk 0:03:02]} 1... c6 {[%clk 0:03:00.8]} 2. Nf3 {[%clk 0:03:02.2]} 2...
d5 {[%clk 0:03:02.7]} 3. Nc3 {[%clk 0:03:03.6]} 3... dxe4 {[%clk 0:03:03.5]} 4.
Nxe4 {[%clk 0:03:05.5]} 4... Nf6 {[%clk 0:03:04.9]} 5. Nxf6+ {[%clk 0:03:04.6]}
5... gxf6 {[%clk 0:03:06.8]} 6. d4 {[%clk 0:03:05.8]} 6... Bg4 {[%clk
0:03:04.3]} 7. Be2 {[%clk 0:03:06.6]} 7... e6 {[%clk 0:03:05.2]} 8. Bf4 {[%clk
0:03:04.1]} 8... Bd6 {[%clk 0:03:06.2]} 9. Bxd6 {[%clk 0:03:03.3]} 9... Qxd6
{[%clk 0:03:08.1]} 10. Qd2 {[%clk 0:03:03.3]} 10... Nd7 {[%clk 0:03:07.8]} 11.
O-O-O {[%clk 0:03:03.6]} 11... O-O-O {[%clk 0:03:08.6]} 12. h3 {[%clk
0:02:56.6]} 12... Bh5 {[%clk 0:03:08.5]} 13. Qa5 {[%clk 0:02:52]} 13... Bxf3
{[%clk 0:03:02.6]} 14. Bxf3 {[%clk 0:02:52.2]} 14... Kb8 {[%clk 0:03:01.6]} 15.
Kb1 {[%clk 0:02:52.3]} 15... Nb6 {[%clk 0:02:53.9]} 16. Rd3 {[%clk 0:02:38.6]}
16... Nc4 {[%clk 0:02:08.8]} 17. Qc3 {[%clk 0:02:36.3]} 17... Nb6 {[%clk
0:01:57.4]} 18. Rhd1 {[%clk 0:02:36.4]} 18... Nd5 {[%clk 0:01:54]} 19. Qa5
{[%clk 0:02:32.2]} 19... Qb4 {[%clk 0:01:48.7]} 20. Qxb4 {[%clk 0:02:23.5]}
20... Nxb4 {[%clk 0:01:50.6]} 21. Rb3 {[%clk 0:02:15.3]} 21... Nd5 {[%clk
0:01:49.6]} 22. g3 {[%clk 0:02:09]} 22... Rd7 {[%clk 0:01:24.3]} 23. Kc1 {[%clk
0:01:43.9]} 23... Rhd8 {[%clk 0:01:21]} 24. Bg2 {[%clk 0:01:40.4]} 24... Ne7
{[%clk 0:01:20.3]} 25. Rbd3 {[%clk 0:01:41.3]} 25... Nf5 {[%clk 0:01:16.6]} 26.
c3 {[%clk 0:01:31.9]} 26... h5 {[%clk 0:01:14]} 27. h4 {[%clk 0:01:30.1]} 27...
Rg8 {[%clk 0:01:05.2]} 28. Bh3 {[%clk 0:01:24.8]} 28... Ne7 {[%clk 0:01:04.4]}
29. Rf3 {[%clk 0:01:17.1]} 29... f5 {[%clk 0:01:03.7]} 30. Rfd3 {[%clk
0:01:12.6]} 30... Nd5 {[%clk 0:00:55.1]} 31. f4 {[%clk 0:01:00.1]} 31... Nf6
{[%clk 0:00:51.4]} 32. Rg1 {[%clk 0:00:44.5]} 32... Ne4 {[%clk 0:00:47.6]} 33.
Re3 {[%clk 0:00:41.6]} 33... c5 {[%clk 0:00:37]} 34. dxc5 {[%clk 0:00:37.3]}
34... Nxc5 {[%clk 0:00:31.5]} 35. Rd1 {[%clk 0:00:31.9]} 35... Rxd1+ {[%clk
0:00:29.4]} 36. Kxd1 {[%clk 0:00:32.7]} 36... Ne4 {[%clk 0:00:31]} 37. Ke2
{[%clk 0:00:15.7]} 37... Nxg3+ {[%clk 0:00:26.5]} 38. Kf2 {[%clk 0:00:07.9]}
38... Ne4+ {[%clk 0:00:22.9]} 39. Ke2 {[%clk 0:00:07.8]} 39... Nf6 {[%clk
0:00:20.4]} 40. Kf1 {[%clk 0:00:02.6]} 40... Nd5 {[%clk 0:00:13.5]} 41. Rf3
{[%clk 0:00:02.9]} 41... Nf6 {[%clk 0:00:09.7]} 42. Bg2 {[%clk 0:00:02.2]} 42...
Rd8 {[%clk 0:00:09.1]} 43. Rf2 {[%clk 0:00:03.4]} 43... Ng4 {[%clk 0:00:08.6]}
44. Re2 {[%clk 0:00:03.7]} 44... Rd1+ {[%clk 0:00:06.9]} 45. Re1 {[%clk
0:00:04.9]} 45... Ne3+ {[%clk 0:00:06.5]} 46. Ke2 {[%clk 0:00:06.1]} 46... Rxe1+
{[%clk 0:00:07]} 0-1

[Event "*** Qualifier 2: Titled Tuesday 3|2 Blitz"]
[Site "Chess.com"]
[Date "2017.04.11"]
[Round "10"]
[White "Marcus_Harvey"]
[Black "Noukii"]
[Result "0-1"]
[WhiteElo "2524"]
[BlackElo "2637"]
[TimeControl "180+2"]
[EndTime "15:22:56 PDT"]
[Termination "Noukii won by resignation"]

1. Nf3 {[%clk 0:03:02]} 1... d5 {[%clk 0:03:00.6]} 2. b3 {[%clk 0:03:03.2]} 2...
Bg4 {[%clk 0:02:59.2]} 3. e3 {[%clk 0:03:03.1]} 3... Nd7 {[%clk 0:02:59.5]} 4.
Bb2 {[%clk 0:03:03.6]} 4... Ngf6 {[%clk 0:03:01.1]} 5. Be2 {[%clk 0:03:03.7]}
5... e6 {[%clk 0:03:01.2]} 6. O-O {[%clk 0:03:04.6]} 6... Bd6 {[%clk 0:03:00.8]}
7. h3 {[%clk 0:03:06.1]} 7... Bh5 {[%clk 0:03:01.8]} 8. d4 {[%clk 0:03:07.1]}
8... c6 {[%clk 0:02:59.7]} 9. Nbd2 {[%clk 0:03:07.9]} 9... Qb8 {[%clk
0:02:59.2]} 10. c4 {[%clk 0:03:08.4]} 10... O-O {[%clk 0:03:00.7]} 11. Qc1
{[%clk 0:03:07.8]} 11... Re8 {[%clk 0:03:00.5]} 12. Ba3 {[%clk 0:03:08.2]} 12...
Ne4 {[%clk 0:02:45.5]} 13. Bxd6 {[%clk 0:03:03.6]} 13... Qxd6 {[%clk 0:02:46.2]}
14. Re1 {[%clk 0:02:59.3]} 14... f5 {[%clk 0:02:47.5]} 15. Qb2 {[%clk
0:02:50.3]} 15... Rf8 {[%clk 0:02:22.1]} 16. Ne5 {[%clk 0:02:27.2]} 16... Bxe2
{[%clk 0:02:13.3]} 17. Nxd7 {[%clk 0:02:25.8]} 17... Qxd7 {[%clk 0:02:14.2]} 18.
Rxe2 {[%clk 0:02:20.7]} 18... Rf6 {[%clk 0:02:09.2]} 19. Nf3 {[%clk 0:02:19.5]}
19... Raf8 {[%clk 0:01:58.3]} 20. Ne5 {[%clk 0:02:20.4]} 20... Qe7 {[%clk
0:01:56.6]} 21. f3 {[%clk 0:02:02.7]} 21... Ng3 {[%clk 0:01:57.5]} 22. Rf2
{[%clk 0:02:00.5]} 22... Rh6 {[%clk 0:01:48.7]} 23. Kh2 {[%clk 0:01:51]} 23...
Qh4 {[%clk 0:01:44.7]} 24. cxd5 {[%clk 0:01:46.5]} 24... exd5 {[%clk 0:01:43.1]}
25. b4 {[%clk 0:01:43.1]} 25... Nh5 {[%clk 0:01:27.3]} 26. b5 {[%clk 0:01:22.5]}
26... f4 {[%clk 0:01:22.4]} 27. e4 {[%clk 0:00:55.6]} 27... Qg3+ {[%clk
0:00:59.3]} 28. Kh1 {[%clk 0:00:55.5]} 28... Nf6 {[%clk 0:00:44.9]} 29. bxc6
{[%clk 0:00:54.2]} 29... bxc6 {[%clk 0:00:42]} 30. Nxc6 {[%clk 0:00:31.7]} 30...
Nxe4 {[%clk 0:00:17.7]} 31. Ne7+ {[%clk 0:00:26.9]} 31... Kh8 {[%clk 0:00:18.3]}
32. fxe4 {[%clk 0:00:26.2]} 32... f3 {[%clk 0:00:19.5]} 33. Rxf3 {[%clk
0:00:12.6]} 33... Rxh3+ {[%clk 0:00:21]} 34. gxh3 {[%clk 0:00:13.7]} 34... Qxf3+
{[%clk 0:00:22.5]} 35. Qg2 {[%clk 0:00:14.8]} 35... Qc3 {[%clk 0:00:21]} 36. Rf1
{[%clk 0:00:13.1]} 36... Re8 {[%clk 0:00:20.7]} 37. exd5 {[%clk 0:00:11.6]}
37... Qxd4 {[%clk 0:00:20.1]} 38. Nf5 {[%clk 0:00:12.3]} 38... Qf6 {[%clk
0:00:20.7]} 39. Ng3 {[%clk 0:00:10.8]} 39... Qh4 {[%clk 0:00:17.5]} 40. Nf5
{[%clk 0:00:10.8]} 40... Qf6 {[%clk 0:00:18.5]} 41. Qf3 {[%clk 0:00:10.5]} 41...
h6 {[%clk 0:00:17.6]} 42. Ng3 {[%clk 0:00:10.7]} 42... Qd4 {[%clk 0:00:17.9]}
43. Rf2 {[%clk 0:00:10.9]} 43... Re1+ {[%clk 0:00:18.6]} 44. Kg2 {[%clk
0:00:12]} 44... Re5 {[%clk 0:00:19.9]} 45. Qf8+ {[%clk 0:00:07.1]} 45... Kh7
{[%clk 0:00:20.8]} 46. d6 {[%clk 0:00:09]} 46... Qd5+ {[%clk 0:00:21.4]} 47. Kh2
{[%clk 0:00:10]} 47... Rg5 {[%clk 0:00:22.1]} 48. Nf5 {[%clk 0:00:09.9]} 48...
Qe5+ {[%clk 0:00:22.8]} 49. Kh1 {[%clk 0:00:03.1]} 49... Qe1+ {[%clk 0:00:23.7]}
0-1